Cogmind - Beta 11 X8 @@@ ROGUE MODE // 2021.12.23 @ 03:41:00 Player: thingamajigger Result: Core destroyed Performance ------------- Evolutions (0) 0 Regions Visited (4) 800 Robots Destroyed (20) 100 Value Destroyed (587) 587 Prototype IDs (26) 520 Alien Tech Used (0) 0 Bonus (300) 300 TOTAL SCORE: 2307 Bonus ------- Aligned with FarCom 300 Cogmind --------- Core Integrity 0/250 Matter 290/300 Energy 85/100 System Corruption 0% Temperature Cool (0) Movement Core (150) Ox2 Location -9/Mines Parts ------- > --- POWER (1) -------- (None) > --- PROPULSION (2) --- (None) > --- UTILITY (2) ------ Bomb Drone Bay (15/16) > --- WEAPON (2) ------- (None) > --- INVENTORY (5) ---- Humpback Peak State ------------ > --- POWER ------------ Light Nuclear Core > --- PROPULSION ------- Light Treads Light Treads > --- UTILITY ---------- Bomb Drone Bay > --- WEAPON ----------- Light Assault Rifle Light Assault Rifle > --- INVENTORY -------- Light Ion Engine Improved Heat Sink Hammer [Rating: 21] Favorites ----------- Power Light Nuclear Core Engine Light Ion Engine Power Core Light Nuclear Core Propulsion Light Treads Treads Light Treads Utility Large Storage Unit Device Structural Scanner Storage Large Storage Unit Processor Transport Network Coupler Protection Light Armor Plating Weapon Light Assault Rifle Ballistic Gun Light Assault Rifle Impact Weapon Hammer Build | -11 -10 -10 -10 -9 ------- Run | Scr Mat Min Exi Min Slots Evolved . | . . . . . Power . | . . . . . Propulsion . | . . . . . Utility . | . . . . . Weapon . | . . . . . Parts Attached 19 | 6 6 3 3 1 Power 3 | 1 . 2 . . Engine 2 | 1 . 1 . . Core 1 | . . 1 . . Reactor . | . . . . . Propulsion 2 | 2 . . . . Treads 2 | 2 . . . . Leg . | . . . . . Wheel . | . . . . . Hover . | . . . . . Flight . | . . . . . Utility 9 | 1 4 . 3 1 Device 3 | . 1 . 1 1 Storage 3 | 1 1 . 1 . Processor 1 | . 1 . . . Hackware . | . . . . . Protection 2 | . 1 . 1 . Artifact . | . . . . . Weapon 5 | 2 2 1 . . Energy Gun . | . . . . . Energy Cannon . | . . . . . Ballistic Gun 4 | 2 1 1 . . Ballistic Cannon . | . . . . . Launcher . | . . . . . Special Weapon . | . . . . . Impact Weapon 1 | . 1 . . . Slashing Weapon . | . . . . . Piercing Weapon . | . . . . . Special Melee Weapon . | . . . . . Unidentified Prototypes 1 | . . . 1 . Parts Lost 8 | . . 3 . 5 Power 3 | . . 2 . 1 Propulsion 2 | . . . . 2 Utility . | . . . . . Weapon 3 | . . 1 . 2 Highest Loss Streak 5 | . . 1 . 5 Average Slot Usage (%) 99 | . 99 99 99 74 Engine 5 | . 14 4 . . Core 7 | . . 9 14 11 Treads 27 | . 28 28 28 22 Device 7 | . 1 14 . . Storage 13 | . 14 14 13 11 Processor 1 | . 6 . . . Protection 4 | . 5 . 12 11 Ballistic Gun 27 | . 26 28 28 16 Naked Turns 1 | . . . . 1 Heaviest Build 30 | 10 27 28 30 30 Greatest Support 40 | 40 40 40 40 40 Greatest Overweight (x) . | . . . . . Average Overweight (x) . | . . . . . Largest Inventory Capacity 15 | 8 15 15 15 15 Average Capacity 13 | 7 10 15 14 14 Most Carried 15 | . 8 11 15 15 Average Carried 8 | . 4 8 13 14 Final Capacity 15 | 8 15 15 15 5 Final Carried 15 | . 8 11 15 2 Class Distribution -------------------- 100% | Mutant Dominant Class ---------------- Mutant | -10/Materials Mutant | -10/Mines Mutant | -10/Exiles Mutant | -9/Mines Resources | -11 -10 -10 -10 -9 ----------- Run | Scr Mat Min Exi Min Matter Collected 700 | 169 125 386 20 . Remotely . | . . . . . Salvage Created 749 | . 252 410 . 87 Parts 45 | . 17 22 . 6 Haulers Intercepted 1 | . 1 . . . Recyclers Shooed 2 | . 1 1 . . Parts Field Recycled . | . . . . . Retrieved Matter . | . . . . . Parts Self-Destructed . | . . . . . Prevented . | . . . . . Kills | -11 -10 -10 -10 -9 ------- Run | Scr Mat Min Exi Min Combat Hostiles Destroyed 14 | . 4 8 . 2 Guns 14 | . 4 8 . 2 Classes Destroyed 6 | . 4 1 . 1 Builder 3 | . 1 2 . . Tunneler 1 | . . 1 . . Hauler 1 | . 1 . . . Watcher 1 | . 1 . . . Grunt 13 | . 4 8 . 1 Demolisher 1 | . . . . 1 Best Kill Streak 2 | . 2 2 . 1 Combat Bots Only 2 | . 2 2 . 1 Max Kills in Single Turn 1 | . 1 1 . 1 Gunslinging . | . . . . . Exploded . | . . . . . Melee . | . . . . . Uniques/NPCs Destroyed . | . . . . . Combat | -11 -10 -10 -10 -9 -------- Run | Scr Mat Min Exi Min Damage Taken 1069 | . 75 654 . 340 Core 254 | . . 114 . 140 Absorbed by Shields . | . . . . . Core Remaining (%) 100 | 100 . . . . Volleys Fired 82 | . 25 51 . 6 Largest 2 | . 2 2 . 2 Hottest 40 | . 40 40 . 40 Shots Fired 160 | . 50 101 . 9 Gun 160 | . 50 101 . 9 Cannon . | . . . . . Launcher . | . . . . . Special . | . . . . . Kinetic 160 | . 50 101 . 9 Thermal . | . . . . . Explosive . | . . . . . Electromagnetic . | . . . . . Robot Hit Streak 19 | . 7 19 . 6 Robot Miss Streak 3 | . 2 3 . 1 Penetration Max . | . . . . . Secondary Targets 2 | . . 2 . . Max Gunslinging Chain 1 | . . 1 . . Shots Hit Robots 117 | . 34 76 . 7 Core Hits 52 | . 16 32 . 4 Critical Kills 2 | . 1 1 . . Critical Parts Destroyed . | . . . . . Critical Strikes 2 | . 1 1 . . Destroy 2 | . 1 1 . . Melee Attacks 3 | . 3 . . . Impact 3 | . 3 . . . Slashing . | . . . . . Piercing . | . . . . . Sneak Attacks . | . . . . . Combat Hostiles . | . . . . . Follow-up Attacks . | . . . . . Damage Inflicted 983 | . 274 648 . 61 Guns 958 | . 260 637 . 61 Cannons . | . . . . . Explosions . | . . . . . Melee 14 | . 14 . . . Ramming 11 | . . 11 . . Kinetic 958 | . 260 637 . 61 Thermal . | . . . . . Explosive . | . . . . . Electromagnetic . | . . . . . Impact 14 | . 14 . . . Slashing . | . . . . . Piercing . | . . . . . Highest Corruption . | . . . . . Average Corruption . | . . . . . Corruption Purged . | . . . . . Overload Shots . | . . . . . Overflow Damage . | . . . . . Projectiles . | . . . . . Explosions . | . . . . . Melee . | . . . . . Knockbacks . | . . . . . Impact . | . . . . . Kinetic . | . . . . . Secondary . | . . . . . Self-Inflicted Damage . | . . . . . Shots . | . . . . . Rammed 3 | . . 3 . . Targets Rammed 4 | . . 4 . . Kicked . | . . . . . Crushed 1 | . . 1 . . Highest Temperature 38 | . 20 31 . 38 Average Temperature 9 | . 8 9 . 13 Received Heat Transfer 480 | . 42 369 . 69 Siege Activations . | . . . . . Robots Corrupted . | . . . . . Combat Hostiles . | . . . . . Parts Fried . | . . . . . Impact Corruptions . | . . . . . Robots Melted . | . . . . . Combat Hostiles . | . . . . . Parts Melted . | . . . . . Heat Transferred . | . . . . . Parts Sabotaged . | . . . . . Parts Stolen . | . . . . . Parts Stripped . | . . . . . Power Chain Reactions . | . . . . . Missiles Intercepted . | . . . . . Alert | -11 -10 -10 -10 -9 ------- Run | Scr Mat Min Exi Min Peak Influence 193 | . 181 193 . 30 Initial 13 | . . 13 . . Average 47 | . 65 40 . 9 Maximum Alert Level . | . . . . . Low Security (%) 100 | 100 100 100 . 100 Level 1 . | . . . . . Level 2 . | . . . . . Level 3 . | . . . . . Level 4 . | . . . . . Level 5 . | . . . . . High Security . | . . . . . Max Security . | . . . . . Squads Dispatched 2 | . 2 . . . Investigation 1 | . 1 . . . Extermination . | . . . . . Reinforcement 1 | . 1 . . . Assault . | . . . . . Garrison . | . . . . . Intercept . | . . . . . Construction Impeded . | . . . . . Haulers Reinforced . | . . . . . Active Scanning Responses . | . . . . . Cargo Convoy Interrupts . | . . . . . Stealth | -11 -10 -10 -10 -9 --------- Run | Scr Mat Min Exi Min Distress Signals . | . . . . . Communications Jammed . | . . . . . Distress Signals . | . . . . . Times Spotted 27 | . 11 8 . 8 Peak Tracking Total 4 | . 3 2 . 4 Tactical Retreats 1 | . 1 . . . Traps | -11 -10 -10 -10 -9 ------- Run | Scr Mat Min Exi Min Traps Triggered 1 | . 1 . . . Indirectly . | . . . . . Trap Hack Attempts . | . . . . . Triggered . | . . . . . Disarmed . | . . . . . Reprogrammed . | . . . . . Reused . | . . . . . Traps Extracted . | . . . . . Installed . | . . . . . Triggered . | . . . . . Machines | -11 -10 -10 -10 -9 ---------- Run | Scr Mat Min Exi Min Machines Disabled . | . . . . . Max in Single Turn . | . . . . . Machines Sabotaged . | . . . . . Garrisons Compromised . | . . . . . Overloaded Fab Kills . | . . . . . Hacking | -11 -10 -10 -10 -9 --------- Run | Scr Mat Min Exi Min Machines Accessed 7 | . 4 1 2 . Terminals 3 | . 3 . . . Fabricators . | . . . . . Repair Stations . | . . . . . Recycling Units 1 | . 1 . . . Scanalyzers . | . . . . . Garrison Access . | . . . . . Total Hacks 18 | . 15 1 2 . Successful 9 | . 6 1 2 . Failed 9 | . 9 . . . Catastrophic 1 | . 1 . . . Database Lockouts . | . . . . . Manual 10 | . 9 . 1 . Terminals 14 | . 14 . . . Fabricators . | . . . . . Repair Stations . | . . . . . Recycling Units 1 | . 1 . . . Scanalyzers . | . . . . . Garrison Access . | . . . . . Terminal Hacks 8 | . 5 1 2 . Record 1 | . . . 1 . Robot Analysis 3 | . 3 . . . Prototype ID Bank 1 | . 1 . . . Open Door 1 | . . 1 . . Terminal Index 1 | . 1 . . . EX-Prototype ID Bank 1 | . . . 1 . Fabricator Hacks . | . . . . . Repair Station Hacks . | . . . . . Recycling Unit Hacks . | . . . . . Scanalyzer . | . . . . . Garrison Access Hacks . | . . . . . Unauthorized Hacks 1 | . 1 . . . Terminals . | . . . . . Fabricators . | . . . . . Repair Stations . | . . . . . Recycling Units 1 | . 1 . . . Recyclers 1 | . 1 . . . Scanalyzers . | . . . . . Garrison Access . | . . . . . Data Cores Recovered . | . . . . . Used . | . . . . . Hacking Detections 3 | . 3 . . . Full Trace Events . | . . . . . Feedback Events . | . . . . . Feedback Blocked . | . . . . . Robot Schematics Acquired . | . . . . . Robots Built . | . . . . . Authchips . | . . . . . Time . | . . . . . Total Robot Build Rating . | . . . . . Part Schematics Acquired . | . . . . . Parts Built . | . . . . . Authchips . | . . . . . Time . | . . . . . Total Part Build Rating . | . . . . . Parts Repaired . | . . . . . Time . | . . . . . Parts Recycled . | . . . . . Recycled Matter . | . . . . . Retrieved Matter . | . . . . . Retrieved Components . | . . . . . Parts Scanalyzed . | . . . . . Part Schematics Acquired . | . . . . . Parts Damaged . | . . . . . Bothacking | -11 -10 -10 -10 -9 ------------ Run | Scr Mat Min Exi Min Used RIF Installer . | . . . . . Robots Hacked . | . . . . . Non-combat . | . . . . . Combat . | . . . . . Robot Hacks Applied . | . . . . . Relay Couplers Released . | . . . . . Fabnet Peak Effective % . | . . . . . Robots Rewired . | . . . . . Allies Hacked . | . . . . . Hacks Repelled . | . . . . . Allies | -11 -10 -10 -10 -9 -------- Run | Scr Mat Min Exi Min Total Allies 2 | . . 2 . . Largest Group 2 | . . 2 2 . Highest-Rated Group 43 | . . 43 43 . Highest-Rated Ally 31 | . . 31 31 . Total Orders . | . . . . . Ally Attacks 1 | . . . . 1 Total Damage . | . . . . . Kills . | . . . . . Allies Corrupted . | . . . . . Allies Melted . | . . . . . Intel | -11 -10 -10 -10 -9 ------- Run | Scr Mat Min Exi Min Robot Analysis Total 3 | . 3 . . . Derelict Logs Recovered 1 | . . 1 . . Drone Launches 1 | . . . . 1 Drone Recoveries . | . . . . . Exploration | -11 -10 -10 -10 -9 ------------- Run | Scr Mat Min Exi Min Turns Passed 2641 | 64 752 1211 563 51 Spaces Moved 1471 | 37 408 663 343 20 Core 3 | 3 . . . . Treads 1468 | 34 408 663 343 20 Legs . | . . . . . Wheels . | . . . . . Hover . | . . . . . Flight . | . . . . . Fastest Speed 50 | 50 160 160 160 160 Average Speed 159 | 151 160 160 160 160 Slowest Speed 160 | 160 160 160 160 160 Overloaded Moves . | . . . . . Propulsion Burnouts . | . . . . . Robots Hopped . | . . . . . Cave-ins Triggered . | . . . . . Exploration Rate (%) 46 | 3 55 96 70 10 Regions Visited 4 Branch Regions 3 Pre-discovered Areas 1 | . . . 1 . Known Exits Taken . | . . . . . Unknown Exits Taken 4 | 1 1 1 1 . Scrap Searched 1 | . . 1 . . Spaces Dug 2 | . 2 . . . Terrain Destroyed 2 | . 2 . . . Melee 2 | . 2 . . . Projectile . | . . . . . AOE . | . . . . . Terrain Rammed . | . . . . . Walls Destroyed . | . . . . . Machines Disabled . | . . . . . Actions | -11 -10 -10 -10 -9 --------- Run | Scr Mat Min Exi Min Total 1625 | 42 462 730 358 33 Wait 16 | . 6 6 . 4 Move 1467 | 36 407 662 342 20 Hop . | . . . . . Pick Up 24 | . 11 4 9 . Fast Attach 10 | 6 1 1 2 . Attach 5 | . 1 2 1 1 Detach 2 | . 1 . 1 . Swap 4 | . 4 . . . Drop 8 | . 3 . 3 2 Fire 82 | . 25 51 . 6 Melee 3 | . 3 . . . Ram . | . . . . . Kick . | . . . . . Crush 4 | . . 4 . . Escape Stasis . | . . . . . Rewire . | . . . . . Trap . | . . . . . Miscellaneous . | . . . . . Route ------- -11/Scrapyard -10/Materials (discovered 2 exits: [*Mat] / *Min) -10/Mines (discovered 3 exits: [*Mat x2] / *Exi) -10/Exiles (discovered 2 exits: [*Min x2]) -9/Mines History --------- Turn | Location | Event 17 | -11/Scrapyard | Discovered new exit (range 16) 65 | -11/Scrapyard | Entered Materials 308 | -10/Materials | Build established: Mutant 510 | -10/Materials | Discovered new exit (range 12) 519 | -10/Materials | Discovered new exit (range 15) 817 | -10/Materials | Entered Mines 1021 | -10/Mines | Discovered new exit (range 9) 1085 | -10/Mines | Discovered new exit (range 4) 1809 | -10/Mines | Found the Drone Emporium 1815 | -10/Mines | Found Prototype Device 1950 | -10/Mines | Learned Materials terminal intel 2022 | -10/Mines | Deemed a non-threat by the Exiles lab entrance 2022 | -10/Mines | Discovered new exit (range 5) 2028 | -10/Mines | Entered Exiles 2028 | -10/Exiles | Accompanied by 2 allies 2052 | -10/Exiles | Discovered new exit (range 14) 2058 | -10/Exiles | Led the pair of lost Derelicts to a safe place 2060 | -10/Exiles | Identified Bomb Drone Bay 2104 | -10/Exiles | Met 8R-AWN 2126 | -10/Exiles | Met EX-HEX 2213 | -10/Exiles | Met EX-DEC 2239 | -10/Exiles | Learned location of Zion (-7) 2364 | -10/Exiles | Met EX-BIN 2386 | -10/Exiles | Aligned with FarCom system 2388 | -10/Exiles | Given EX-Vault access code 2424 | -10/Exiles | Opened EX-Vault 2438 | -10/Exiles | Found Trap Reconfigurator 2469 | -10/Exiles | Warned to stay clear of 0b10 Research branches 2575 | -10/Exiles | Discovered new exit (range 11) 2591 | -10/Exiles | Left Exiles lab with Trap Reconfigurator 2591 | -10/Exiles | Entered Mines 2592 | -9/Mines | Assembled infested the area 2597 | -9/Mines | Assisted by a Guerilla fighting off Assembled 2636 | -9/Mines | Core integrity fell below 50% 2640 | -9/Mines | Core integrity fell below 20% 2642 | -9/Mines | Core destroyed Last Messages --------------- 02614_ HV Slug penetrates G-47 Trooper. 02614_ G-47 Trooper suffers critical hit (Destroy). 02616_ HV Slug penetrates G-47 Trooper. 02616_ G-47 Trooper suffers critical hit (Destroy). 02616_ G-47 Trooper knocked back. 02616_ HV Slug penetrates G-47 Trooper. 02626_ The unstable cave ceiling collapses. 02633_ Lgt. Treads destroyed. 02633_ D-53 Grenadier destroyed. 02637_ The unstable cave ceiling collapses. 02638_ 1 Matter crushed. 02639_ Dropped Lgt. Armor Plating. 02639_ Lgt. Assault Rifle destroyed. 02639_ Lgt. Nuclear Core destroyed. 02639_ Dropped Lrg. Storage Unit. 02642_ Bomb Drone released from Bomb Drone Bay. 02642_ The unstable cave ceiling collapses. 02642_ Bomb Drone sneak attacks. 02642_ Bomb Drone detonates. 02642_ Bomb Drone destroyed. Map ----- +----------------------------------------------------+ | ?????????????????????????????????? | | ?????????????????????????????????? | | ?????????????????????????????????? | | ?????????????????????????????????? | | ?????????????????????????????????? | | ?????????????????????????????????? | | ?????????????????????????????????? | | ?????????????????????????????????? | | ?????????????????????????????????? | | ?????????????????????????????????? | | ?????????????????????????????????? | | ?????????????????????????????????? | | ?????????????????????????????????? | | ?????????????????????????????????? | | ?????????????????????????????????? | | ?????????????????????? ???????? | | ????????????????????? ???????? | | ???????????????????? ??????? | | ???#??????????????? ??????? | | ???# ?????###?????# ??????? | | ???# ###### ##??? " # #??????? | | ???? ## #### # #????????? | | ????### d# ????????????? | | ????# %##??????????????? | | ????## !* ! ##?????????????? | | ????# !!@/ ##????????????? | | ????# ! #????????????? | | ???## ! *%% #????????????? | | ?# %*=!##????????????? | | ?# gg # ##[;#?????????????? | | ?# ####?%##?????????????? | | ?#""" ??????#??????????????? | | ?#""" ??????????????????????? | | ?#""" #??????????????????????? | | ?# #??????????????????????? | | ?? #??????????????????????? | | ??#########??????????????????????? | | ?????????????????????????????????? | | ?????????????????????????????????? | | ?????????????????????????????????? | | ?????????????????????????????????? | | ?????????????????????????????????? | | ?????????????????????????????????? | | ?????????????????????????????????? | | ?????????????????????????????????? | | ?????????????????????????????????? | | ?????????????????????????????????? | | ?????????????????????????????????? | | ?????????????????????????????????? | | ?????????????????????????????????? | +----------------------------------------------------+ Best States ------------- Heat Dissipation 25 Energy Generation 14 Energy Capacity 250 Matter Stores 300 Matter Capacity 300 Sight Range 16 Terrain Scan Density 10 Armor Coverage 150 Evasion (%) 40 Recoil Reduction 2 Item Schematics ----------------- None Robot Schematics ------------------ None Fabricated ------------ Nothing Alien Tech Used ----------------- None Achievements -------------- None Challenges ------------ None Game ------ Seed MappingMolecularCharger Manual? 0 Play Time 00:09:03 Cumulative 138.5 hours Start 2021.12.23 @ 03:32:59 End 2021.12.23 @ 03:41:00 Sessions 1 Manual Loads 0 Difficulty Rogue Special Mode None Game No. 233 Rogue 216 Adventurer 4 Explorer 13 Win Type - Total 8 Types 6/0/0/2/0/0/0/0/0 Lore% 64 Gallery% 82 Achievement% 68 Wizard Run 0 Options --------- ASCII 0 Keyboard 1 Movement Numpad Keybinds 0 Fullscreen 1 Font 18/SmallcapsGlow Map View 76x50 Tactical HUD 1 Map Filters NONE Filters NONE Steam 1 RUN: 11b1bc5f-129d-471a-bbbe-aa3f052b1e7d